bitfinex-derivatives/quotes_ETHF0:USTF0_20251119
["timestamp","ask_amount","ask_price","bid_price","bid_amount"]
[1763555814500,0.5241,3093.3,3093.1,0.52722317]
[1763555814699,0.5241,3093.3,3093.2,0.28834282]
[1763555815200,0.5241,3093.3,3093.2,0.29291832]
[1763555815404,0.0032664,3093.6,3093.5,0.427]
[1763555816310,0.0032664,3093.6,3093.5,0.44651832]
[1763555816603,3.2078,3094.2,3094.1,0.2734]
[1763555817198,3.73174,3094.2,3094.1,0.2734]
[1763555817402,3.73174,3094.2,3094.1,0.29291832]
[1763555817604,3.73432897,3094.2,3094.1,0.29291832]
[1763555817804,3.73432897,3094.2,3094.1,0.01951832]
[1763555821305,0.52404,3093.6,3093.5,0.1536]
[1763555823211,0.52411,3093.2,3093.1,0.00309317]
[1763555823411,3.73191,3093.2,3093.1,0.00309317]
[1763555823610,0.52421,3092.6,3092.5,0.4089]
[1763555824112,0.52421,3092.6,3092.5,0.1536]
[1763555824502,0.52421,3092.6,3092.5,0.15653454]
[1763555825015,0.52421,3092.6,3092.5,0.15183454]
[1763555826115,0.52421,3092.6,3092.5,0.40713454]
[1763555829110,0.52421,3092.6,3092.5,0.15183454]
[1763555829912,0.5243,3092.1,3092.0,0.1536]
[1763555830109,0.5243,3092.1,3092.0,0.4089]
[1763555831017,0.5243,3092.1,3092.0,0.41289012]
[1763555831720,0.5243,3092.1,3092.0,0.15759012]
[1763555832925,0.52438,3091.6,3091.5,0.1489]
[1763555833314,3.73218,3091.6,3091.5,0.1489]
[1763555834019,3.73612806,3091.6,3091.5,0.15182188]
[1763555835822,0.52447,3091.1,3091.0,3.3567]
[1763555836017,3.73227,3091.1,3091.0,0.1489]
[1763555836710,0.52455,3090.6,3090.5,0.1489]
[1763555836916,0.52455,3090.6,3090.5,0.40804436]
[1763555837117,0.52455,3090.6,3090.5,0.15274436]
[1763555838535,3.2078,3090.7,3090.0,0.1489]
[1763555838536,0.52464,3090.1,3090.0,0.1489]
[1763555838718,3.73244,3090.1,3090.0,0.1489]
[1763555839421,3.236,3090.0,3089.0,0.1489]
[1763555839620,3.73261,3089.1,3089.0,0.15298703]
[1763555839817,0.52489,3088.6,3088.5,0.1489]
[1763555840919,0.52489,3088.6,3088.5,0.15283652]
[1763555841119,0.52489,3088.6,3088.5,0.40813652]
[1763555841318,0.52489,3088.6,3088.5,0.15283652]
[1763555842519,0.52489,3088.6,3088.5,0.40813652]
[1763555842719,0.52489,3088.6,3088.5,0.15283652]
[1763555844021,0.52498,3088.1,3088.0,0.1489]
[1763555844222,0.52498,3088.1,3088.0,0.4062]
[1763555844422,0.52497,3088.2,3088.0,0.1489]
[1763555844623,3.2078,3088.3,3088.2,0.2573]
[1763555845330,3.2078,3088.3,3088.2,0.00334982]
[1763555845716,3.73274,3088.3,3088.2,0.00334982]
[1763555846317,0.52498,3088.1,3088.0,0.1489]
[1763555847522,0.52498,3088.1,3088.0,0.40892212]
[1763555848425,3.2078,3088.3,3087.4,2.67070212]
[1763555848426,0.52501,3087.9,3087.4,2.67070212]
[1763555848624,0.52501,3087.9,3087.8,0.2573]
[1763555849123,0.52501,3087.9,3087.8,6.2573]
[1763555849531,0.52501,3087.9,3087.8,6.25977941]
[1763555850118,0.52499,3088.0,3087.9,0.2573]
[1763555851420,3.2078,3088.3,3088.0,0.1585]
[1763555851634,3.73274,3088.3,3088.2,0.2573]
[1763555852234,0.0048499,3088.4,3088.3,0.2809]
[1763555852725,0.52489,3088.6,3088.5,0.4443]
[1763555853926,3.2078,3088.7,3088.6,0.2809]
[1763555854126,1.4824,3088.7,3088.6,0.2809]
[1763555855236,2.00727,3088.7,3088.6,0.2809]
[1763555855626,0.52486,3088.8,3088.7,0.2809]
[1763555857330,0.00485782,3088.9,3088.8,0.80576]
[1763555857528,0.52485,3088.9,3088.8,0.52485]
[1763555857732,0.52483,3089.0,3088.9,0.80574]
[1763555858037,0.52483,3089.0,3088.9,0.2809]
[1763555859238,0.00362282,3089.1,3089.0,0.96912]
[1763555859439,3.73244,3090.1,3090.0,0.4443]
[1763555859634,0.52472,3089.6,3089.5,0.4443]
[1763555859839,0.78512,3089.6,3089.5,0.4443]
[1763555860438,0.52707734,3089.6,3089.5,0.44798529]
[1763555860934,0.78747734,3089.6,3089.5,0.44798529]
[1763555861140,0.78747734,3089.6,3089.5,0.28458529]
[1763555861736,0.78747734,3089.6,3089.5,0.00368529]
[1763555862338,0.52487,3088.7,3088.6,3.4887]
[1763555862544,0.1489,3089.5,3088.2,0.2809]
[1763555862545,0.52496,3088.3,3088.2,0.2809]
[1763555863240,0.52496,3088.3,3088.2,0.28437431]
[1763555863636,0.52489,3088.6,3088.5,0.4443]
[1763555863841,0.52489,3088.6,3088.5,3.6521]
[1763555864743,3.21015734,3089.6,3089.1,0.2809]
[1763555864945,0.2604,3089.2,3089.1,0.2809]
[1763555865242,0.78519,3089.2,3089.1,0.2809]
[1763555866444,0.78519,3089.2,3088.6,0.2809]
[1763555866445,0.52488,3088.7,3088.6,0.2809]
[1763555867047,0.52488,3088.7,3088.6,0.80579]
[1763555867248,0.52488,3088.7,3088.6,0.2809]
[1763555867741,0.78528,3088.7,3088.6,0.2809]
[1763555867948,3.2078,3089.2,3088.4,3.2078]
[1763555867949,0.2604,3088.5,3088.4,3.2078]
[1763555868145,0.78531,3088.5,3088.4,3.2078]
[1763555868347,0.78531,3088.5,3088.4,3.4887]
[1763555869055,0.52491,3088.5,3088.4,3.4887]
[1763555869363,4.36880445,3089.2,3088.5,0.68831]
[1763555869550,3.2078,3089.2,3088.5,0.68831]
[1763555869750,0.52489,3088.6,3088.5,0.4443]
[1763555869955,3.2078,3089.2,3088.5,0.4443]
[1763555870154,0.52489,3088.6,3088.5,0.96921]
[1763555870356,0.52488,3088.7,3088.6,0.80579]
[1763555870556,3.73259,3089.2,3089.1,0.2809]
[1763555871460,3.99299,3089.2,3089.1,0.2809]
[1763555871665,0.52489,3088.6,3088.5,0.4443]
[1763555872056,0.52491,3088.5,3088.4,3.4887]
[1763555872358,0.52489,3088.6,3088.5,0.4443]
[1763555872866,0.52487,3088.8,3088.7,0.2809]
[1763555875564,0.52487,3088.8,3088.7,0.80577]
[1763555875872,0.52484,3088.9,3088.8,0.80576]
[1763555876168,0.00235734,3089.6,3088.8,0.80576]
[1763555876169,0.52707734,3089.6,3089.5,0.4443]
[1763555876370,0.78747734,3089.6,3089.5,0.4443]
[1763555876857,0.52481,3089.1,3089.0,0.4443]
[1763555877360,0.52481,3089.1,3089.0,0.96912]
[1763555878067,0.52481,3089.1,3089.0,0.4443]
[1763555878263,0.52479,3089.2,3089.1,0.2809]
[1763555879565,0.52479,3089.2,3089.1,0.80571]
[1763555879766,0.52479,3089.2,3089.1,0.2809]
[1763555879962,0.52479,3089.2,3089.1,0.80571]
[1763555880158,0.00235734,3089.6,3089.0,0.1634]
[1763555880364,0.52707734,3089.6,3089.5,0.4443]
[1763555880871,0.78747734,3089.6,3089.5,0.4443]
[1763555881070,0.52476,3089.4,3089.3,3.4887]
[1763555881476,0.52476,3089.4,3089.3,3.2078]
[1763555881477,0.78516,3089.4,3089.3,3.2078]
[1763555881667,0.78516,3089.4,3089.3,3.4887]
[1763555882368,0.52476,3089.4,3089.3,3.4887]
[1763555883275,0.00235734,3089.6,3089.5,0.99784]
[1763555883662,0.00235734,3089.6,3089.5,1.86692278]
[1763555884072,0.52707734,3089.6,3089.5,1.86692278]
[1763555884372,0.00235734,3089.6,3089.5,1.86692278]
[1763555884971,0.00235734,3089.6,3089.5,0.99784]
[1763555885371,0.52952782,3089.9,3089.8,0.82089]
[1763555885569,0.81312782,3089.9,3089.8,3.2078]
[1763555885769,0.5247,3089.7,3089.6,0.2962]
[1763555886367,0.52712947,3089.7,3089.6,0.2962]
[1763555886769,0.80832,3089.6,3089.5,0.00485782]
[1763555887074,0.80832,3089.6,3089.5,0.30105782]
[1763555887977,0.80832,3089.6,3089.5,0.47795782]
[1763555888372,0.52472,3089.6,3089.5,0.47795782]
[1763555889070,0.00242947,3089.7,3089.6,0.82092]
[1763555890276,0.52712947,3089.7,3089.6,1.69251945]
[1763555890573,0.52712947,3089.7,3089.6,0.82092]
[1763555890778,0.52712947,3089.7,3089.6,1.69251945]
[1763555891276,0.52712947,3089.7,3089.6,0.82092]
[1763555891471,0.52712947,3089.7,3089.6,0.2962]
[1763555891679,0.81072947,3089.7,3089.6,0.2962]
[1763555892667,0.81072947,3089.7,3089.5,0.18175782]
[1763555892668,0.80832,3089.6,3089.5,0.00485782]
[1763555892872,0.52472,3089.6,3089.5,0.47795782]
[1763555893771,0.52472,3089.6,3089.5,1.00269782]
[1763555893968,0.52472,3089.6,3089.5,0.47795782]
[1763555894373,0.00242947,3089.7,3089.6,0.82092]
[1763555894573,0.00242947,3089.7,3089.6,1.69251945]
[1763555895781,2.947e-05,3089.7,3089.6,1.69251945]
[1763555896582,0.00485782,3089.9,3089.8,0.82089]
[1763555896788,0.00485782,3089.9,3089.8,4.02869]
[1763555897083,0.52461,3090.3,3090.2,0.2962]
[1763555897277,0.52461,3090.3,3090.2,3.504]
[1763555897783,0.81240703,3090.3,3090.2,3.504]
[1763555898881,0.81240703,3090.3,3090.2,3.2078]
[1763555899284,0.00419703,3090.3,3089.8,3.2078]
[1763555899479,0.52467,3089.9,3089.8,3.504]
[1763555899673,0.80827,3089.9,3089.8,3.2078]
[1763555900679,0.2836,3089.9,3089.8,3.504]
[1763555900884,0.80827,3089.9,3089.8,3.504]
[1763555901087,0.52467,3089.9,3089.8,3.504]
[1763555901389,0.52465,3090.1,3090.0,0.1769]
[1763555901584,0.00419703,3090.3,3090.2,0.2962]
[1763555902180,0.52879703,3090.3,3090.2,0.82082]
[1763555902381,0.00419703,3090.3,3090.2,0.82082]
[1763555902689,0.52879703,3090.3,3090.2,0.2962]
[1763555903189,0.81239703,3090.3,3090.2,0.2962]
[1763555903383,0.52879703,3090.3,3090.2,0.2962]
[1763555904185,0.52879703,3090.3,3090.2,0.82082]
[1763555904384,0.52879703,3090.3,3090.2,0.2962]
[1763555905691,0.00419703,3090.3,3090.2,4.02862]
[1763555906092,0.00419703,3090.3,3090.2,4.89905189]
[1763555906987,0.52457,3090.5,3090.4,0.80159]
[1763555907194,0.52457,3090.5,3090.4,1.67256312]
[1763555907387,0.00485782,3090.6,3090.5,0.96307]
[1763555907591,0.00485782,3090.6,3090.5,4.72107]
[1763555907794,0.00867379,3090.6,3090.5,5.88048775]
[1763555907993,0.79492379,3090.6,3090.5,0.004017]
[1763555909197,0.53322379,3090.6,3090.5,0.442517]
[1763555910400,0.53322379,3090.6,3090.5,0.004017]
[1763555910401,0.79492379,3090.6,3090.5,0.004017]
[1763555911692,6.79492379,3090.6,3090.5,0.004017]
[1763555912392,7.95592824,3090.6,3090.5,0.004017]
[1763555912595,1.95592824,3090.6,3090.5,0.004017]
[1763555912799,0.79492379,3090.6,3090.5,0.004017]
[1763555913001,0.79492379,3090.6,3090.5,0.283817]
[1763555913695,0.53322379,3090.6,3090.5,0.444517]
[1763555915001,0.81352379,3090.6,3090.5,0.444517]
[1763555916999,0.53322379,3090.6,3090.5,0.444517]
[1763555917704,0.53322379,3090.6,3090.5,1.31491955]
[1763555917902,0.53322379,3090.6,3090.5,0.99430682]
[1763555918103,0.52454,3090.7,3090.6,0.80435]
[1763555918296,0.52452,3090.8,3090.7,0.80433]
[1763555918900,0.52452,3090.8,3090.7,0.2798]
[1763555919205,0.5286382,3090.8,3090.7,0.28254971]
[1763555919797,0.5286382,3090.8,3090.7,0.80707971]
[1763555920199,0.5286382,3090.8,3090.7,0.28254971]
[1763555921811,0.0041182,3090.8,3090.7,0.80707971]
[1763555922205,0.5286382,3090.8,3090.7,0.28254971]
[1763555922518,0.5286382,3090.8,3090.7,0.80707971]
[1763555922808,0.0041182,3090.8,3090.7,1.96248046]
[1763555923709,0.5286382,3090.8,3090.7,1.96248046]
[1763555924507,0.0041182,3090.8,3090.7,1.96248046]
[1763555925406,0.0041182,3090.8,3090.7,0.80707971]
[1763555925710,14.5165912,3091.5,3091.4,0.2798]
[1763555925913,0.5244,3091.5,3091.4,0.2798]
[1763555926206,0.52438,3091.7,3091.6,0.80418]
[1763555926397,0.52438,3091.7,3091.6,0.2798]
[1763555926595,0.80755489,3091.7,3091.6,0.2798]
[1763555926996,0.80755489,3091.7,3091.3,3.49245782]
[1763555926997,0.52441,3091.4,3091.3,3.49245782]
[1763555927197,0.80471,3091.4,3091.3,3.49245782]
[1763555927609,0.52441,3091.4,3091.3,4.01688782]
[1763555927809,0.52441,3091.4,3091.3,3.49245782]
[1763555928715,0.52441,3091.5,3091.4,0.52441]
[1763555929007,0.52441,3091.5,3091.4,0.80421]
[1763555929412,0.52441,3091.5,3091.4,4.56221]
[1763555929802,0.00287489,3091.7,3091.6,0.80418]
[1763555930711,0.52723489,3091.7,3091.6,0.80418]
[1763555930905,0.00287489,3091.7,3091.6,0.80418]
[1763555931101,0.52723489,3091.7,3091.6,0.2798]
[1763555931312,0.80471,3091.4,3091.3,0.28465782]
[1763555931505,0.1552,3091.5,3090.7,0.00274971]
[1763555931506,0.80482,3090.8,3090.7,0.00274971]
[1763555932714,0.96007,3090.5,3090.4,0.00485782]
[1763555933818,0.96007,3090.5,3090.4,0.2885507]
[1763555934710,0.96007,3090.5,3090.4,0.0087507]
[1763555937411,0.2803,3089.5,3089.4,0.2798]
[1763555937815,0.80504,3089.5,3089.4,0.2798]
[1763555938015,0.80505,3089.4,3089.3,3.4876]
[1763555938220,0.1552,3090.0,3089.4,0.2798]
[1763555938423,0.16251461,3090.0,3089.5,0.2798]
[1763555938625,0.52471,3089.7,3089.6,0.2798]
[1763555938919,0.52469,3089.8,3089.7,0.5247]
[1763555939115,0.52469,3089.8,3089.7,0.8045]
[1763555939509,0.52469,3089.8,3089.7,0.2798]
[1763555940326,0.00731461,3090.0,3089.9,0.2798]
[1763555940725,0.53196461,3090.0,3089.9,0.2798]
[1763555941127,0.00731461,3090.0,3089.9,0.2798]
[1763555941322,0.53196461,3090.0,3089.9,0.2798]
[1763555941623,0.81226461,3090.0,3089.9,0.2798]
[1763555941927,0.53196461,3090.0,3089.9,0.2798]
[1763555942132,0.5247,3089.7,3089.6,3.4995]
[1763555942729,0.8272,3089.7,3089.6,3.4995]
[1763555943623,0.47721461,3090.0,3089.9,0.2917]
[1763555943918,0.5247,3089.7,3089.6,3.4995]
[1763555944319,0.5247,3089.7,3089.6,4.02422]
[1763555945017,0.5247,3089.7,3089.6,3.4995]
[1763555945225,0.8272,3089.7,3089.6,3.4995]
[1763555945932,0.8272,3089.7,3089.6,3.2078]
[1763555946118,0.17471461,3090.0,3089.4,0.00802306]
[1763555946119,0.99464,3089.5,3089.4,0.00802306]
[1763555951033,0.82724,3089.5,3089.4,0.29972306]
[1763555951440,0.52474,3089.5,3089.4,0.29972306]
[1763555951927,0.52474,3089.5,3089.4,0.82447306]
[1763555952130,0.52474,3089.5,3089.4,0.29972306]
[1763555952330,0.99464,3089.5,3089.4,0.29972306]
[1763555953138,0.99464,3089.5,3089.4,0.82447306]
[1763555954030,0.82724,3089.5,3089.4,0.82447306]
[1763555954541,0.30981461,3090.0,3089.9,0.81637]
[1763555954734,0.00731461,3090.0,3089.9,4.02417]
[1763555955134,0.53196461,3090.0,3089.9,4.02417]
[1763555955936,0.00731461,3090.0,3089.9,4.02417]
[1763555956437,0.53196461,3090.0,3089.9,4.02417]
[1763555956637,1.00186461,3090.0,3089.9,4.02417]
[1763555956844,0.83446461,3090.0,3089.9,4.02417]
[1763555957142,0.53196461,3090.0,3089.9,4.02417]
[1763555958042,0.00731461,3090.0,3089.9,4.02417]
[1763555960447,3.363,3091.0,3090.2,0.2917]
[1763555960645,0.5246,3090.3,3090.2,0.2917]
[1763555960944,0.5246,3090.3,3090.2,3.4995]
[1763555961141,0.8271,3090.3,3090.2,3.2078]
[1763555961443,0.82717,3089.9,3089.8,4.36806431]
[1763555961644,0.82717,3089.9,3089.8,3.2078]
[1763555962143,0.82717,3089.9,3089.8,3.73248]
[1763555962348,0.1674,3090.0,3089.9,0.2917]
[1763555962643,0.52465,3090.0,3089.9,0.2917]
[1763555962851,0.52465,3090.0,3089.9,0.81637]
[1763555963648,0.52463,3090.2,3090.1,0.52462]
[1763555963840,0.52463,3090.2,3090.1,0.2917]
[1763555964046,0.82713,3090.2,3090.1,0.2917]
[1763555964954,0.82715,3090.0,3089.9,0.81637]
[1763555965549,0.82715,3090.0,3089.9,0.2917]
[1763555965750,0.82717,3089.9,3089.8,4.36806431]
[1763555965955,0.52467,3089.9,3089.8,4.63406431]
[1763555966455,0.80377703,3090.3,3090.2,0.266]
[1763555966651,0.2751,3090.1,3089.8,4.36806431]
[1763555966850,0.52467,3089.9,3089.8,4.63406431]
[1763555967244,0.00407703,3090.3,3090.2,0.266]
[1763555967456,0.00407703,3090.3,3090.2,3.99842]
[1763555968755,0.00407703,3090.3,3090.2,5.15868431]
[1763555970152,0.52446,3091.1,3091.0,0.95168]
[1763555970457,0.52446,3091.1,3091.0,0.79048]
[1763555970953,0.52445,3091.2,3091.1,0.79046]
[1763555971155,0.52687952,3091.2,3091.1,0.79046]
[1763555971354,0.80197952,3091.2,3091.1,0.79046]
[1763555971958,0.52687952,3091.2,3091.1,0.79046]
[1763555972155,0.7967,3090.9,3090.8,0.00485782]
[1763555979175,0.95247,3090.5,3090.4,3.2078]
[1763555979777,0.79683,3090.1,3090.0,4.07660756]
[1763555979972,0.79683,3090.1,3090.0,4.33470756]
[1763555980279,0.79683,3090.1,3090.0,3.2078]
[1763555980876,0.79683,3090.1,3090.0,3.4659]
[1763555981175,0.79683,3090.1,3090.0,3.2078]
[1763555982070,0.79683,3090.1,3090.0,3.4659]
[1763555982280,3.2078,3090.4,3090.0,3.99055]
[1763555983178,3.2078,3090.4,3090.0,3.2078]
[1763555983383,0.1557,3090.5,3090.2,0.2581]
[1763555983681,0.4279,3090.5,3090.4,0.2581]
[1763555984185,0.52457,3090.5,3090.4,3.99048]
[1763555984387,0.95247,3090.5,3090.4,3.4659]
[1763555984680,0.79677,3090.5,3090.4,3.4659]
[1763555986082,0.52457,3090.5,3090.4,3.99048]
[1763555987488,0.52457,3090.5,3090.4,3.4659]
[1763555988692,0.1557,3091.0,3090.4,3.99045]
[1763555988886,0.52457,3090.5,3090.4,7.74845]
[1763555989282,0.95238,3091.0,3090.9,0.2581]
[1763555990093,0.95238,3091.0,3090.8,3.2078]
[1763555990094,0.5245,3090.9,3090.8,3.4659]
[1763555990785,0.5245,3090.9,3090.8,3.99041]
[1763555991185,0.52449,3091.0,3090.9,0.78256]
[1763555991390,0.52449,3091.0,3090.9,0.2581]
[1763555992889,0.7967,3090.9,3090.8,3.4659]
[1763555993097,0.7967,3090.9,3090.8,3.2078]
[1763555993388,0.7967,3090.9,3090.8,3.73231]
[1763555993601,0.7967,3090.9,3090.8,3.2078]
[1763555993982,0.7967,3090.9,3090.8,3.4659]
[1763555994184,0.7967,3090.9,3090.8,3.2078]
[1763555995391,0.7967,3090.9,3090.8,3.4659]
[1763555995596,0.7967,3090.9,3090.8,3.2078]
[1763555996397,0.7967,3090.9,3090.8,3.4659]
[1763555997701,0.5245,3090.9,3090.8,3.4659]
[1763555997992,0.5245,3090.9,3090.8,3.99041]
[1763555998697,0.7967,3090.9,3090.8,3.4659]
[1763556000301,0.79673,3090.7,3090.6,0.86914097]
[1763556000495,3.2078,3090.9,3090.4,4.07694097]
[1763556000496,0.52457,3090.5,3090.4,4.07694097]
[1763556000691,0.95247,3090.5,3090.4,4.33504097]
[1763556000891,0.79677,3090.5,3090.4,4.85962097]
[1763556001090,0.79677,3090.5,3090.4,4.33504097]
[1763556001296,0.52456,3090.6,3090.5,0.4181]
[1763556001491,0.52454,3090.7,3090.6,0.52455]
[1763556001699,0.52451,3090.9,3090.8,0.52448]
[1763556001994,0.00485782,3091.5,3091.4,0.77011]
[1763556002189,0.00485782,3091.5,3091.4,3.97791]
[1763556003194,3.2078,3092.2,3091.8,0.52434]
[1763556003392,0.52433,3091.9,3091.8,3.4535]
[1763556003591,0.76413,3091.9,3091.8,3.4535]
[1763556004298,0.76770899,3091.9,3091.8,3.45729664]
[1763556005701,0.52790899,3091.9,3091.8,3.45729664]
[1763556006693,0.52790899,3091.9,3091.8,3.98164664]
[1763556007406,0.00357899,3091.9,3091.8,3.98164664]
[1763556007900,0.52432,3092.0,3091.9,0.77003]
[1763556008698,0.5243,3092.1,3092.0,0.52429]
[1763556008906,0.52740615,3092.1,3092.0,0.92189]
[1763556009094,0.52433,3091.9,3091.8,3.45729664]
[1763556009503,0.52433,3091.9,3091.8,3.98164664]
[1763556011206,0.76413,3091.9,3091.8,3.45729664]
[1763556012898,0.76413,3091.9,3091.8,3.21159664]
[1763556013105,0.52438,3091.6,3091.5,0.25055782]
[1763556013306,0.76418,3091.6,3091.5,0.25055782]
[1763556013909,0.52438,3091.6,3091.5,0.77495782]
[1763556014096,0.52438,3091.6,3091.5,0.2547661]
[1763556014502,0.76418,3091.6,3091.5,0.2547661]
[1763556014907,0.76418,3091.6,3091.5,0.0090661]
[1763556016509,0.7643,3090.9,3090.8,0.2457]
[1763556016705,0.5245,3090.9,3090.8,0.2457]
[1763556017297,0.5245,3090.9,3090.8,0.24957845]
[1763556018011,0.7643,3090.9,3090.8,0.24957845]
[1763556019211,0.7643,3090.9,3090.8,0.00387845]
[1763556019803,0.7643,3090.9,3090.8,0.24957845]
[1763556020506,0.5245,3090.9,3090.8,0.24957845]
[1763556022809,3.3486,3091.5,3090.8,0.24957845]
[1763556023009,0.5245,3091.0,3090.9,0.7702]
[1763556023415,0.5245,3091.0,3090.9,0.2457]
[1763556024211,0.7643,3091.0,3090.9,0.2457]
[1763556024908,0.5245,3091.0,3090.9,0.2457]
[1763556025715,0.7643,3091.0,3090.9,0.2457]
[1763556026315,0.7643,3091.0,3090.9,0.7702]
[1763556026915,0.7643,3091.0,3090.9,3.978]
[1763556027214,0.7643,3091.0,3090.9,3.4535]
[1763556027718,0.9021,3091.0,3090.9,3.4535]
[1763556028507,0.9021,3091.0,3090.9,3.2078]
[1763556029020,2.02945183,3091.0,3090.9,3.4531]
[1763556030213,2.02945183,3091.0,3090.8,0.52838845]
[1763556030214,0.7647,3090.9,3090.8,0.00387845]
[1763556031018,0.7647,3090.9,3090.5,0.00485782]
[1763556031019,0.76475,3090.6,3090.5,0.00485782]
[1763556031217,1.89210183,3090.6,3090.5,0.00485782]
[1763556032020,1.89210183,3090.6,3090.5,0.00817166]
[1763556032716,1.89210183,3090.6,3090.5,0.24137166]
[1763556032923,0.52455,3090.6,3090.5,0.90034166]
[1763556033413,0.52454,3090.7,3090.6,0.52453]
[1763556033629,0.52454,3090.7,3090.6,0.75773]
[1763556033914,3.2078,3091.3,3090.6,0.2332]
[1763556034122,3.97333,3091.3,3091.2,0.2332]
[1763556035020,0.76553,3091.3,3091.2,0.2332]
[1763556035223,0.52443,3091.3,3091.2,0.2332]
[1763556035425,0.52443,3091.3,3091.2,0.75765]
[1763556037219,0.5244,3091.5,3091.4,0.75761]
[1763556037419,0.52438,3091.6,3091.5,0.75759]
[1763556037616,0.52438,3091.6,3091.5,0.3676]
[1763556038730,0.52438,3091.6,3091.5,0.892]
[1763556039428,0.3819,3092.0,3091.9,0.2332]
[1763556039631,0.2411,3092.0,3091.9,0.2332]
[1763556039827,0.76543,3091.9,3091.8,3.2078]
[1763556040421,0.76543,3091.9,3091.8,3.441]
[1763556040720,0.76543,3091.9,3091.8,3.2078]
[1763556042228,0.5244,3091.5,3091.4,0.2332]
[1763556042431,0.9043,3091.5,3091.4,0.2332]
[1763556042732,0.9043,3091.5,3091.4,0.75761]
[1763556042925,0.5244,3091.5,3091.4,0.75761]
[1763556043524,0.2411,3091.7,3091.6,0.2332]
[1763556043925,0.76546,3091.7,3091.6,0.75758]
[1763556044132,0.52436,3091.7,3091.6,0.75758]
[1763556044328,0.76543,3091.9,3091.8,0.2332]
[1763556048035,0.76543,3091.9,3091.8,0.75755]
[1763556048335,0.76543,3091.9,3091.8,0.2332]
[1763556048834,0.76543,3091.9,3091.8,0.75755]
[1763556050933,0.52431,3092.0,3091.9,0.52431]
[1763556051235,0.52741615,3092.1,3092.0,0.89191]
[1763556052929,0.00310615,3092.1,3092.0,0.89191]
[1763556054735,0.00310615,3092.1,3092.0,2.01785812]
[1763556056027,0.00485782,3092.2,3092.1,0.75749]
[1763556056238,0.00485782,3092.2,3092.1,3.96529]
[1763556057055,0.00906526,3092.2,3092.1,3.96529]
[1763556057652,0.1388,3093.0,3092.5,0.1344]
[1763556057854,0.90404,3093.0,3092.9,3.441]
[1763556058053,0.90404,3093.0,3092.9,3.96516]
[1763556058757,0.90647611,3093.0,3092.9,3.96854016]
[1763556059458,0.90647611,3093.0,3092.9,3.44438016]
[1763556060351,0.90647611,3093.0,3092.9,0.00338016]
[1763556061246,0.90647611,3093.0,3092.9,3.96854016]
[1763556061454,3.73673974,3093.3,3093.2,0.2332]
[1763556061653,0.52893974,3093.3,3093.2,0.2332]
[1763556062356,0.75653974,3093.3,3093.2,0.2332]
[1763556062546,0.76066493,3093.3,3093.2,0.2332]
[1763556063548,0.76066493,3093.3,3093.2,0.75731]
[1763556063755,0.53306493,3093.3,3093.2,0.75731]
[1763556065146,0.00897493,3093.3,3093.2,0.75731]
[1763556066161,0.7516,3093.9,3093.8,0.2255]
[1763556067161,0.75393156,3093.9,3093.8,0.2255]
[1763556067462,0.75393156,3093.9,3093.8,0.74951]
[1763556069861,0.75393156,3093.9,3093.8,0.2255]
[1763556071465,0.75162,3093.7,3093.6,0.74954]
[1763556071862,0.2276,3093.7,3093.6,0.74954]
[1763556072067,0.52401,3093.8,3093.7,0.74952]
[1763556072365,0.52632156,3093.9,3093.8,0.74951]
[1763556072756,0.00233156,3093.9,3093.8,0.74951]
[1763556076867,0.00233156,3093.9,3093.8,4.50751]
[1763556077070,0.52632156,3093.9,3093.8,4.50751]
[1763556079570,0.00233156,3093.9,3093.8,4.50751]
[1763556081563,0.52632156,3093.9,3093.8,4.50751]
[1763556081768,0.00233156,3093.9,3093.8,4.50751]
[1763556081969,0.52632156,3093.9,3093.8,4.50751]
[1763556084771,0.75392156,3093.9,3093.8,3.9835]
[1763556084972,7.90422948,3093.9,3093.8,3.758]
[1763556085571,0.75251,3093.8,3093.7,3.2078]
[1763556085766,0.52407,3093.4,3093.3,3.2078]
[1763556085971,0.75257,3093.4,3093.3,3.2078]
[1763556086677,0.75257,3093.4,3093.3,3.4467]
[1763556087079,0.75257,3093.4,3093.3,3.2078]
[1763556088371,0.52407,3093.4,3093.3,3.4467]
[1763556088979,0.52406,3093.5,3093.4,0.76296]
[1763556089972,0.52406,3093.5,3093.4,0.2389]
[1763556090177,0.75257,3093.4,3093.3,3.2078]
[1763556090872,0.89134,3093.0,3092.9,3.21118016]
[1763556091072,0.89134,3093.0,3092.9,0.00338016]
[1763556094576,0.89134,3093.0,3092.9,3.21118016]
[1763556095481,0.89134,3093.0,3092.9,3.97424016]
[1763556097672,0.89134,3093.0,3092.9,3.21118016]
[1763556100278,0.89134,3093.0,3092.9,0.00338016]
[1763556103986,0.89134,3093.0,3092.9,0.24618016]
[1763556104190,0.75264,3093.0,3092.9,0.24618016]
[1763556104485,0.52414,3093.0,3092.9,0.77034016]
[1763556104891,0.75824,3093.0,3092.9,0.24618016]
[1763556105088,0.75824,3093.0,3092.9,3.45398016]
[1763556105578,0.52414,3093.0,3092.9,3.97814016]
[1763556105777,0.52414,3093.0,3092.9,3.45398016]
[1763556105778,0.75824,3093.0,3092.9,3.45398016]
[1763556105977,0.75824,3093.0,3092.9,3.97814016]
[1763556106384,0.75824,3093.0,3092.9,3.45398016]
[1763556106790,0.89244,3093.0,3092.9,3.45398016]
[1763556107088,0.89244,3093.0,3092.9,3.97814016]
[1763556107388,0.89244,3093.0,3092.9,3.45398016]
[1763556107588,0.89244,3093.0,3092.9,3.97814016]
[1763556107788,0.89244,3093.0,3092.9,3.45398016]
[1763556108090,0.52414,3093.0,3092.9,3.97814016]
[1763556108287,0.89244,3093.0,3092.9,3.21118016]
[1763556110880,0.65834,3093.0,3092.9,3.21118016]
[1763556111084,0.89244,3093.0,3092.9,3.21118016]
[1763556111285,0.89244,3093.0,3092.9,3.45398016]
[1763556111893,0.75824,3093.0,3092.9,3.45398016]
[1763556112395,0.89244,3093.0,3092.9,3.21118016]